[Event "Titled Tuesday Blitz March 07 Early 2023"]
[White "Fiorito, Joaquin"]
[Black "Prieto Aranguren, Alain"]
[WhiteFideId "180173"]
[BlackFideId "2268906"]
[WhiteElo "2157"]
[BlackElo "2209"]
[Result "1-0"]
[Round "01"]
[TimeControl "180+2"]
[Date "2023.03.07"]
[WhiteClock "0:00:21"]
[BlackClock "0:00:35"]

1. d4 {[%clk 0:03:00]}  d5 {[%clk 0:02:58]} 2. Nc3 {[%clk 0:03:01]}  c6 {[%clk 0:02:57]} 3. Bf4 {[%clk 0:03:01]}  Na6 {[%clk 0:02:52]} 4. e4 {[%clk 0:02:53]}  dxe4 {[%clk 0:02:48]} 5. Bxa6 {[%clk 0:02:49]}  bxa6 {[%clk 0:02:47]} 6. Nxe4 {[%clk 0:02:49]}  Nf6 {[%clk 0:02:44]} 7. Nxf6+ {[%clk 0:02:48]}  exf6 {[%clk 0:02:41]} 8. Nf3 {[%clk 0:02:47]}  Bd6 {[%clk 0:02:40]} 9. Bxd6 {[%clk 0:02:47]}  Qxd6 {[%clk 0:02:40]} 10. O-O {[%clk 0:02:48]}  O-O {[%clk 0:02:40]} 11. h3 {[%clk 0:02:48]}  Rb8 {[%clk 0:02:38]} 12. b3 {[%clk 0:02:46]}  Bf5 {[%clk 0:02:28]} 13. Re1 {[%clk 0:02:44]}  Rfe8 {[%clk 0:02:28]} 14. Qd2 {[%clk 0:02:37]}  Be4 {[%clk 0:02:27]} 15. Re3 {[%clk 0:01:54]}  c5 {[%clk 0:02:15]} 16. dxc5 {[%clk 0:01:52]}  Qxd2 {[%clk 0:02:13]} 17. Nxd2 {[%clk 0:01:53]}  Bxc2 {[%clk 0:02:11]} 18. Rc1 {[%clk 0:01:46]}  Rxe3 {[%clk 0:02:09]} 19. fxe3 {[%clk 0:01:46]}  Bf5 {[%clk 0:02:08]} 20. e4 {[%clk 0:01:46]}  Be6 {[%clk 0:02:07]} 21. Kf2 {[%clk 0:01:46]}  a5 {[%clk 0:02:07]} 22. c6 {[%clk 0:01:42]}  Kf8 {[%clk 0:02:06]} 23. Ke3 {[%clk 0:01:40]}  Ke7 {[%clk 0:02:06]} 24. Nf3 {[%clk 0:01:35]}  Kd6 {[%clk 0:02:04]} 25. Nd4 {[%clk 0:01:35]}  a6 {[%clk 0:01:54]} 26. c7 {[%clk 0:01:16]}  Rc8 {[%clk 0:01:50]} 27. Rc6+ {[%clk 0:01:16]}  Kd7 {[%clk 0:01:50]} 28. Rxa6 {[%clk 0:01:17]}  Rxc7 {[%clk 0:01:47]} 29. Rxa5 {[%clk 0:01:18]}  Rc3+ {[%clk 0:01:44]} 30. Kf2 {[%clk 0:01:18]}  Rd3 {[%clk 0:01:43]} 31. Nf3 {[%clk 0:01:18]}  Rc3 {[%clk 0:01:40]} 32. Ra7+ {[%clk 0:01:16]}  Kd6 {[%clk 0:01:38]} 33. Nd4 {[%clk 0:01:07]}  Ke5 {[%clk 0:01:32]} 34. Nxe6 {[%clk 0:01:07]}  Kxe6 {[%clk 0:01:29]} 35. Ra5 {[%clk 0:01:05]}  h5 {[%clk 0:01:25]} 36. b4 {[%clk 0:00:48]}  g5 {[%clk 0:01:22]} 37. a3 {[%clk 0:00:48]}  h4 {[%clk 0:01:21]} 38. b5 {[%clk 0:00:41]}  Rb3 {[%clk 0:01:21]} 39. Ra6+ {[%clk 0:00:38]}  Ke5 {[%clk 0:01:20]} 40. a4 {[%clk 0:00:38]}  Ra3 {[%clk 0:01:11]} 41. b6 {[%clk 0:00:34]}  Kxe4 {[%clk 0:01:02]} 42. Ra5 {[%clk 0:00:29]}  Ra2+ {[%clk 0:00:46]} 43. Kg1 {[%clk 0:00:28]}  Ra1+ {[%clk 0:00:45]} 44. Kh2 {[%clk 0:00:28]}  f5 {[%clk 0:00:36]} 45. b7 {[%clk 0:00:23]}  g4 {[%clk 0:00:36]} 46. hxg4 {[%clk 0:00:22]}  fxg4 {[%clk 0:00:36]} 47. b8=Q {[%clk 0:00:19]}  g3+ {[%clk 0:00:35]} 48. Kh3 {[%clk 0:00:19]}  Rh1+ {[%clk 0:00:34]} 49. Kg4 {[%clk 0:00:20]}  f5+ {[%clk 0:00:35]} 50. Rxf5 {[%clk 0:00:21]} 1-0


[Site "https://www.chess.com"]

[Event "Titled Tuesday Blitz March 07 Early 2023"]
[White "SicilianPanzer"]
[Black "Sielecki, Christof"]
[BlackFideId "4620437"]
[WhiteElo "2262"]
[BlackElo "2443"]
[Result "0-1"]
[Round "01"]
[TimeControl "180+2"]
[Date "2023.03.07"]
[WhiteClock "0:00:01"]
[BlackClock "0:00:27"]

1. d4 {[%clk 0:02:59]}  d5 {[%clk 0:02:59]} 2. c4 {[%clk 0:02:58]}  e6 {[%clk 0:02:57]} 3. Nc3 {[%clk 0:02:57]}  Nf6 {[%clk 0:02:57]} 4. cxd5 {[%clk 0:02:56]}  exd5 {[%clk 0:02:58]} 5. Bg5 {[%clk 0:02:56]}  c6 {[%clk 0:02:58]} 6. Qc2 {[%clk 0:02:53]}  h6 {[%clk 0:02:58]} 7. Bh4 {[%clk 0:02:52]}  Be7 {[%clk 0:02:58]} 8. e3 {[%clk 0:02:50]}  O-O {[%clk 0:02:57]} 9. Bd3 {[%clk 0:02:49]}  Re8 {[%clk 0:02:56]} 10. Nge2 {[%clk 0:02:38]}  a5 {[%clk 0:02:56]} 11. O-O {[%clk 0:02:27]}  b5 {[%clk 0:02:55]} 12. a4 {[%clk 0:02:14]}  b4 {[%clk 0:02:52]} 13. Na2 {[%clk 0:02:00]}  Ba6 {[%clk 0:02:42]} 14. Nac1 {[%clk 0:01:48]}  Nfd7 {[%clk 0:02:26]} 15. Bxe7 {[%clk 0:01:09]}  Qxe7 {[%clk 0:02:27]} 16. Nb3 {[%clk 0:01:07]}  Bxd3 {[%clk 0:02:18]} 17. Qxd3 {[%clk 0:01:05]}  Rc8 {[%clk 0:01:59]} 18. Rfc1 {[%clk 0:00:58]}  Qd8 {[%clk 0:01:50]} 19. Rc2 {[%clk 0:00:43]}  Na6 {[%clk 0:01:39]} 20. Rac1 {[%clk 0:00:40]}  Qb6 {[%clk 0:01:39]} 21. e4 {[%clk 0:00:31]}  dxe4 {[%clk 0:01:36]} 22. Qxe4 {[%clk 0:00:31]}  Nf6 {[%clk 0:01:37]} 23. Qf5 {[%clk 0:00:28]}  Nd5 {[%clk 0:01:27]} 24. Nc5 {[%clk 0:00:16]}  Nxc5 {[%clk 0:01:23]} 25. Rxc5 {[%clk 0:00:15]}  Qa6 {[%clk 0:01:13]} 26. Nf4 {[%clk 0:00:08]}  Nxf4 {[%clk 0:01:06]} 27. Qxf4 {[%clk 0:00:09]}  Qd3 {[%clk 0:01:02]} 28. d5 {[%clk 0:00:06]}  Rd8 {[%clk 0:00:46]} 29. Qf3 {[%clk 0:00:01]}  Qxf3 {[%clk 0:00:42]} 30. gxf3 {[%clk 0:00:02]}  cxd5 {[%clk 0:00:41]} 31. Rd1 {[%clk 0:00:01]}  d4 {[%clk 0:00:40]} 32. Rd3 {[%clk 0:00:01]}  Rac8 {[%clk 0:00:37]} 33. Rxc8 {[%clk 0:00:01]}  Rxc8 {[%clk 0:00:38]} 34. Rxd4 {[%clk 0:00:01]}  Rc2 {[%clk 0:00:38]} 35. Rd5 {[%clk 0:00:01]}  Rxb2 {[%clk 0:00:38]} 36. Rxa5 {[%clk 0:00:02]}  Ra2 {[%clk 0:00:34]} 37. Kg2 {[%clk 0:00:02]}  g5 {[%clk 0:00:32]} 38. Rb5 {[%clk 0:00:02]}  Rxa4 {[%clk 0:00:30]} 39. Rb8+ {[%clk 0:00:01]}  Kg7 {[%clk 0:00:31]} 40. Rb6 {[%clk 0:00:01]}  f6 {[%clk 0:00:30]} 41. f4 {[%clk 0:00:01]}  Kg6 {[%clk 0:00:27]} 0-1


[Site "https://www.chess.com"]

[Event "Titled Tuesday Blitz March 07 Early 2023"]
[White "Tsotsonava, Elene"]
[Black "Saravana, Krishnan P."]
[WhiteFideId "13615939"]
[BlackFideId "5018382"]
[WhiteElo "1829"]
[BlackElo "2189"]
[Result "1-0"]
[Round "01"]
[TimeControl "180+2"]
[Date "2023.03.07"]
[WhiteClock "0:00:23"]
[BlackClock "0:00:01"]

1. e4 {[%clk 0:02:57]}  e6 {[%clk 0:02:58]} 2. d3 {[%clk 0:02:49]}  d5 {[%clk 0:02:58]} 3. Nd2 {[%clk 0:02:49]}  Nf6 {[%clk 0:02:58]} 4. g3 {[%clk 0:02:47]}  Bc5 {[%clk 0:02:59]} 5. Bg2 {[%clk 0:02:46]}  Bf8 {[%clk 0:03:00]} 6. Ngf3 {[%clk 0:02:45]}  Bc5 {[%clk 0:03:01]} 7. O-O {[%clk 0:02:45]}  dxe4 {[%clk 0:03:02]} 8. dxe4 {[%clk 0:02:45]}  O-O {[%clk 0:02:45]} 9. Qe2 {[%clk 0:02:20]}  b6 {[%clk 0:02:17]} 10. e5 {[%clk 0:02:17]}  Nd5 {[%clk 0:02:12]} 11. c4 {[%clk 0:02:17]}  Nb4 {[%clk 0:02:09]} 12. a3 {[%clk 0:02:12]}  Qd3 {[%clk 0:02:02]} 13. Qxd3 {[%clk 0:01:53]}  Nxd3 {[%clk 0:02:02]} 14. b4 {[%clk 0:01:50]}  Be7 {[%clk 0:01:57]} 15. Ne1 {[%clk 0:01:44]}  Nxc1 {[%clk 0:01:49]} 16. Bxa8 {[%clk 0:01:39]}  Ne2+ {[%clk 0:01:47]} 17. Kg2 {[%clk 0:01:39]}  c6 {[%clk 0:01:45]} 18. Nc2 {[%clk 0:01:39]}  Rd8 {[%clk 0:01:43]} 19. Ne4 {[%clk 0:01:37]}  Nd4 {[%clk 0:01:32]} 20. Nxd4 {[%clk 0:01:12]}  Rxd4 {[%clk 0:01:31]} 21. Rfe1 {[%clk 0:01:12]}  Rxc4 {[%clk 0:01:27]} 22. Rac1 {[%clk 0:01:11]}  Rd4 {[%clk 0:01:14]} 23. f3 {[%clk 0:00:43]}  Rd8 {[%clk 0:00:58]} 24. Red1 {[%clk 0:00:40]}  Rf8 {[%clk 0:00:46]} 25. Bxc6 {[%clk 0:00:39]}  Nxc6 {[%clk 0:00:29]} 26. Rxc6 {[%clk 0:00:40]}  Ba6 {[%clk 0:00:19]} 27. Rc7 {[%clk 0:00:30]}  Bd8 {[%clk 0:00:15]} 28. Rcd7 {[%clk 0:00:29]}  f5 {[%clk 0:00:14]} 29. Rxd8 {[%clk 0:00:26]}  fxe4 {[%clk 0:00:14]} 30. fxe4 {[%clk 0:00:26]}  Bb7 {[%clk 0:00:12]} 31. Rxf8+ {[%clk 0:00:22]}  Kxf8 {[%clk 0:00:12]} 32. Rd7 {[%clk 0:00:20]}  Bxe4+ {[%clk 0:00:11]} 33. Kf2 {[%clk 0:00:20]}  a5 {[%clk 0:00:09]} 34. bxa5 {[%clk 0:00:19]}  bxa5 {[%clk 0:00:09]} 35. Ra7 {[%clk 0:00:19]}  Bd5 {[%clk 0:00:06]} 36. Rxa5 {[%clk 0:00:19]}  g5 {[%clk 0:00:06]} 37. Ke3 {[%clk 0:00:20]}  Bg2 {[%clk 0:00:04]} 38. Kd4 {[%clk 0:00:20]}  Kf7 {[%clk 0:00:04]} 39. Rc5 {[%clk 0:00:21]}  Kg6 {[%clk 0:00:04]} 40. a4 {[%clk 0:00:22]}  Kf5 {[%clk 0:00:05]} 41. a5 {[%clk 0:00:23]}  h5 {[%clk 0:00:04]} 42. a6 {[%clk 0:00:23]}  h4 {[%clk 0:00:03]} 43. gxh4 {[%clk 0:00:22]}  gxh4 {[%clk 0:00:03]} 44. Rc2 {[%clk 0:00:23]}  h3 {[%clk 0:00:03]} 45. a7 {[%clk 0:00:23]}  Kf4 {[%clk 0:00:03]} 46. Ra2 {[%clk 0:00:22]}  Ba8 {[%clk 0:00:02]} 47. Rf2+ {[%clk 0:00:22]}  Kg4 {[%clk 0:00:01]} 48. Kc5 {[%clk 0:00:23]} 1-0


[Site "https://www.chess.com"]

[Event "Titled Tuesday Blitz March 07 Early 2023"]
[White "Kohler, Aran"]
[Black "Crevatin, Leo"]
[WhiteFideId "1002856"]
[BlackFideId "1726307"]
[WhiteElo "2239"]
[BlackElo "2190"]
[Result "0-1"]
[Round "01"]
[TimeControl "180+2"]
[Date "2023.03.07"]
[WhiteClock "0:00:44"]
[BlackClock "0:01:21"]

1. Nf3 {[%clk 0:02:59]}  d5 {[%clk 0:02:58]} 2. d4 {[%clk 0:02:59]}  Nf6 {[%clk 0:02:58]} 3. Bf4 {[%clk 0:02:59]}  c5 {[%clk 0:02:58]} 4. e3 {[%clk 0:02:59]}  Nc6 {[%clk 0:02:58]} 5. c3 {[%clk 0:02:59]}  Qb6 {[%clk 0:02:57]} 6. Qb3 {[%clk 0:02:55]}  c4 {[%clk 0:02:57]} 7. Qc2 {[%clk 0:02:55]}  Bf5 {[%clk 0:02:57]} 8. Qc1 {[%clk 0:02:55]}  e6 {[%clk 0:02:56]} 9. Be2 {[%clk 0:02:52]}  h6 {[%clk 0:02:54]} 10. Nbd2 {[%clk 0:02:50]}  Nh5 {[%clk 0:02:54]} 11. Ne5 {[%clk 0:02:41]}  Nxf4 {[%clk 0:02:52]} 12. exf4 {[%clk 0:02:42]}  Bd6 {[%clk 0:02:48]} 13. g4 {[%clk 0:02:32]}  Bh7 {[%clk 0:02:47]} 14. b3 {[%clk 0:02:14]}  cxb3 {[%clk 0:02:47]} 15. axb3 {[%clk 0:02:12]}  f6 {[%clk 0:02:46]} 16. Nxc6 {[%clk 0:02:10]}  bxc6 {[%clk 0:02:47]} 17. Ra6 {[%clk 0:02:07]}  Qc7 {[%clk 0:02:46]} 18. b4 {[%clk 0:02:07]}  O-O {[%clk 0:02:43]} 19. Nf1 {[%clk 0:01:27]}  Bxf4 {[%clk 0:02:39]} 20. Qa3 {[%clk 0:01:28]}  e5 {[%clk 0:02:35]} 21. Qa4 {[%clk 0:01:23]}  Rfc8 {[%clk 0:02:32]} 22. Ng3 {[%clk 0:01:19]}  exd4 {[%clk 0:02:30]} 23. cxd4 {[%clk 0:01:19]}  Qe7 {[%clk 0:02:26]} 24. Rxc6 {[%clk 0:01:10]}  Rxc6 {[%clk 0:02:25]} 25. Qxc6 {[%clk 0:01:10]}  Qxb4+ {[%clk 0:02:25]} 26. Kf1 {[%clk 0:01:09]}  Rd8 {[%clk 0:02:24]} 27. Qe6+ {[%clk 0:01:07]}  Kh8 {[%clk 0:02:24]} 28. Kg2 {[%clk 0:01:07]}  Qxd4 {[%clk 0:02:16]} 29. Bf3 {[%clk 0:01:07]}  Qe5 {[%clk 0:02:13]} 30. Qa6 {[%clk 0:01:05]}  Be4 {[%clk 0:02:09]} 31. Bxe4 {[%clk 0:01:02]}  dxe4 {[%clk 0:02:08]} 32. Nh5 {[%clk 0:01:00]}  e3 {[%clk 0:01:52]} 33. Qxa7 {[%clk 0:01:00]}  Qe4+ {[%clk 0:01:38]} 34. f3 {[%clk 0:00:57]}  Rd2+ {[%clk 0:01:37]} 35. Kh3 {[%clk 0:00:53]}  Qxf3+ {[%clk 0:01:37]} 36. Ng3 {[%clk 0:00:54]}  Bxg3 {[%clk 0:01:35]} 37. Qa8+ {[%clk 0:00:44]}  Qxa8 {[%clk 0:01:21]} 0-1


[Site "https://www.chess.com"]

[Event "Titled Tuesday Blitz March 07 Early 2023"]
[White "Ciuffoletti, Paolo"]
[Black "Gabdrakhmanov, Azat"]
[WhiteFideId "807630"]
[BlackFideId "34189197"]
[WhiteElo "2143"]
[BlackElo "2266"]
[Result "0-1"]
[Round "01"]
[TimeControl "180+2"]
[Date "2023.03.07"]
[WhiteClock "0:00:03"]
[BlackClock "0:00:09"]

1. e4 {[%clk 0:02:59]}  c5 {[%clk 0:02:52]} 2. d4 {[%clk 0:02:58]}  cxd4 {[%clk 0:02:52]} 3. c3 {[%clk 0:02:57]}  dxc3 {[%clk 0:02:53]} 4. Nxc3 {[%clk 0:02:56]}  e6 {[%clk 0:02:53]} 5. Nf3 {[%clk 0:02:56]}  Be7 {[%clk 0:02:51]} 6. Bc4 {[%clk 0:02:55]}  d6 {[%clk 0:02:51]} 7. O-O {[%clk 0:02:55]}  Nc6 {[%clk 0:02:50]} 8. Qe2 {[%clk 0:02:54]}  Nf6 {[%clk 0:02:51]} 9. Rd1 {[%clk 0:02:54]}  e5 {[%clk 0:02:51]} 10. h3 {[%clk 0:02:54]}  O-O {[%clk 0:02:51]} 11. Be3 {[%clk 0:02:52]}  a6 {[%clk 0:02:50]} 12. a3 {[%clk 0:02:39]}  b5 {[%clk 0:02:49]} 13. Ba2 {[%clk 0:02:38]}  Bb7 {[%clk 0:02:49]} 14. Rac1 {[%clk 0:02:36]}  Qb8 {[%clk 0:02:23]} 15. Nh4 {[%clk 0:02:27]}  Re8 {[%clk 0:01:54]} 16. Nf5 {[%clk 0:02:20]}  Bf8 {[%clk 0:01:54]} 17. Bg5 {[%clk 0:01:46]}  Nd4 {[%clk 0:01:24]} 18. Nxd4 {[%clk 0:01:35]}  exd4 {[%clk 0:01:24]} 19. Rxd4 {[%clk 0:01:35]}  Nd7 {[%clk 0:01:17]} 20. Kh2 {[%clk 0:01:12]}  Nc5 {[%clk 0:01:08]} 21. Qf3 {[%clk 0:00:56]}  Ne6 {[%clk 0:00:58]} 22. Bxe6 {[%clk 0:00:47]}  Rxe6 {[%clk 0:00:59]} 23. Nd5 {[%clk 0:00:43]}  Bxd5 {[%clk 0:00:51]} 24. exd5 {[%clk 0:00:42]}  Re8 {[%clk 0:00:48]} 25. Rc6 {[%clk 0:00:29]}  Qb7 {[%clk 0:00:42]} 26. Bd2 {[%clk 0:00:21]}  Qe7 {[%clk 0:00:34]} 27. Bb4 {[%clk 0:00:19]}  Qe5+ {[%clk 0:00:22]} 28. Qf4 {[%clk 0:00:19]}  a5 {[%clk 0:00:22]} 29. Bxd6 {[%clk 0:00:17]}  Bxd6 {[%clk 0:00:22]} 30. Rxd6 {[%clk 0:00:16]}  Qe1 {[%clk 0:00:20]} 31. Rd7 {[%clk 0:00:15]}  Rf8 {[%clk 0:00:20]} 32. Re4 {[%clk 0:00:14]}  Qd1 {[%clk 0:00:19]} 33. Ree7 {[%clk 0:00:14]}  Qh5 {[%clk 0:00:19]} 34. g4 {[%clk 0:00:13]}  Qg6 {[%clk 0:00:18]} 35. h4 {[%clk 0:00:14]}  h5 {[%clk 0:00:17]} 36. gxh5 {[%clk 0:00:13]}  Qxh5 {[%clk 0:00:17]} 37. d6 {[%clk 0:00:13]}  Rad8 {[%clk 0:00:15]} 38. Rxd8 {[%clk 0:00:13]}  Rxd8 {[%clk 0:00:15]} 39. d7 {[%clk 0:00:13]}  Kh7 {[%clk 0:00:13]} 40. Qe4+ {[%clk 0:00:12]}  f5 {[%clk 0:00:13]} 41. Qf4 {[%clk 0:00:10]}  Qg6 {[%clk 0:00:13]} 42. Qe5 {[%clk 0:00:08]}  Qg4 {[%clk 0:00:12]} 43. Qg3 {[%clk 0:00:06]}  Kg6 {[%clk 0:00:08]} 44. Qxg4+ {[%clk 0:00:06]}  fxg4 {[%clk 0:00:09]} 45. Kg3 {[%clk 0:00:07]}  Kf6 {[%clk 0:00:09]} 46. Re8 {[%clk 0:00:06]}  Rxd7 {[%clk 0:00:10]} 47. Kxg4 {[%clk 0:00:06]}  Rd2 {[%clk 0:00:10]} 48. f4 {[%clk 0:00:06]}  Rxb2 {[%clk 0:00:09]} 49. Rb8 {[%clk 0:00:06]}  b4 {[%clk 0:00:09]} 50. Rb6+ {[%clk 0:00:06]}  Kf7 {[%clk 0:00:08]} 51. Kf5 {[%clk 0:00:07]}  bxa3 {[%clk 0:00:07]} 52. Ra6 {[%clk 0:00:07]}  Rb5+ {[%clk 0:00:08]} 53. Kg4 {[%clk 0:00:05]}  a2 {[%clk 0:00:09]} 54. Ra7+ {[%clk 0:00:04]}  Kg6 {[%clk 0:00:09]} 55. h5+ {[%clk 0:00:03]}  Kh6 {[%clk 0:00:09]} 56. Ra6+ {[%clk 0:00:03]}  Kh7 {[%clk 0:00:09]} 0-1


[Site "https://www.chess.com"]

[Event "Titled Tuesday Blitz March 07 Early 2023"]
[White "Tarhan, Adar"]
[Black "Dilmukhametov, Artur"]
[WhiteFideId "34544712"]
[BlackFideId "24179922"]
[WhiteElo "2220"]
[BlackElo "2199"]
[Result "1-0"]
[Round "01"]
[TimeControl "180+2"]
[Date "2023.03.07"]
[WhiteClock "0:02:00"]
[BlackClock "0:01:58"]

1. e4 {[%clk 0:03:00]}  e6 {[%clk 0:02:58]} 2. d4 {[%clk 0:02:59]}  d5 {[%clk 0:02:57]} 3. Nd2 {[%clk 0:03:00]}  Nf6 {[%clk 0:02:55]} 4. e5 {[%clk 0:02:58]}  Nfd7 {[%clk 0:02:55]} 5. Bd3 {[%clk 0:02:58]}  c5 {[%clk 0:02:55]} 6. c3 {[%clk 0:02:58]}  Nc6 {[%clk 0:02:53]} 7. Ne2 {[%clk 0:02:58]}  cxd4 {[%clk 0:02:53]} 8. cxd4 {[%clk 0:02:59]}  f6 {[%clk 0:02:51]} 9. exf6 {[%clk 0:03:00]}  Nxf6 {[%clk 0:02:50]} 10. O-O {[%clk 0:02:59]}  Bd6 {[%clk 0:02:50]} 11. Nf3 {[%clk 0:02:59]}  O-O {[%clk 0:02:50]} 12. Bf4 {[%clk 0:03:00]}  Ng4 {[%clk 0:02:47]} 13. Bg3 {[%clk 0:02:28]}  Rxf3 {[%clk 0:02:45]} 14. gxf3 {[%clk 0:02:29]}  Nf6 {[%clk 0:02:43]} 15. Rc1 {[%clk 0:02:27]}  Bd7 {[%clk 0:02:42]} 16. Bxd6 {[%clk 0:02:23]}  Be8 {[%clk 0:02:40]} 17. Bg3 {[%clk 0:02:23]}  Nh5 {[%clk 0:02:37]} 18. Re1 {[%clk 0:02:22]}  Nxg3 {[%clk 0:02:37]} 19. hxg3 {[%clk 0:02:23]}  Qf6 {[%clk 0:02:34]} 20. Qd2 {[%clk 0:02:15]}  e5 {[%clk 0:02:31]} 21. Rxc6 {[%clk 0:02:07]}  Bxc6 {[%clk 0:02:28]} 22. dxe5 {[%clk 0:02:08]}  Qxf3 {[%clk 0:02:25]} 23. Nd4 {[%clk 0:02:06]}  Qh5 {[%clk 0:02:22]} 24. Nxc6 {[%clk 0:02:06]}  bxc6 {[%clk 0:02:23]} 25. Qc2 {[%clk 0:02:04]}  Rc8 {[%clk 0:02:20]} 26. e6 {[%clk 0:02:03]}  Qg5 {[%clk 0:02:09]} 27. e7 {[%clk 0:02:03]}  Re8 {[%clk 0:02:01]} 28. Bxh7+ {[%clk 0:02:03]}  Kh8 {[%clk 0:02:01]} 29. Qg6 {[%clk 0:01:59]}  Qxg6 {[%clk 0:01:58]} 30. Bxg6 {[%clk 0:02:00]} 1-0


[Site "https://www.chess.com"]

[Event "Titled Tuesday Blitz March 07 Early 2023"]
[White "Papp, Levente"]
[Black "Tagliati, Eleonore"]
[WhiteFideId "751243"]
[BlackFideId "45172234"]
[WhiteElo "2380"]
[BlackElo "2213"]
[Result "1-0"]
[Round "01"]
[TimeControl "180+2"]
[Date "2023.03.07"]
[WhiteClock "0:00:06"]
[BlackClock "0:00:03"]

1. b3 {[%clk 0:03:00]}  e5 {[%clk 0:02:56]} 2. Bb2 {[%clk 0:03:00]}  Nc6 {[%clk 0:02:54]} 3. c4 {[%clk 0:02:59]}  Nf6 {[%clk 0:02:52]} 4. Nc3 {[%clk 0:02:56]}  d5 {[%clk 0:02:34]} 5. cxd5 {[%clk 0:02:55]}  Nxd5 {[%clk 0:02:35]} 6. g3 {[%clk 0:02:56]}  Be6 {[%clk 0:02:34]} 7. Bg2 {[%clk 0:02:56]}  Be7 {[%clk 0:02:32]} 8. Nf3 {[%clk 0:02:55]}  O-O {[%clk 0:02:31]} 9. O-O {[%clk 0:02:54]}  Qd7 {[%clk 0:02:27]} 10. Rc1 {[%clk 0:02:21]}  Rad8 {[%clk 0:02:24]} 11. Ne4 {[%clk 0:02:17]}  f6 {[%clk 0:02:06]} 12. Nc5 {[%clk 0:02:16]}  Bxc5 {[%clk 0:02:06]} 13. Rxc5 {[%clk 0:02:17]}  Nb6 {[%clk 0:02:00]} 14. d3 {[%clk 0:02:05]}  Bh3 {[%clk 0:01:47]} 15. a3 {[%clk 0:01:59]}  Bxg2 {[%clk 0:01:43]} 16. Kxg2 {[%clk 0:01:59]}  Qd6 {[%clk 0:01:41]} 17. Qc2 {[%clk 0:01:57]}  Rde8 {[%clk 0:01:37]} 18. b4 {[%clk 0:01:54]}  a6 {[%clk 0:01:32]} 19. Rc1 {[%clk 0:01:47]}  f5 {[%clk 0:01:31]} 20. Qc3 {[%clk 0:01:21]}  Rf7 {[%clk 0:01:21]} 21. Nxe5 {[%clk 0:01:14]}  Nxe5 {[%clk 0:01:12]} 22. Rxe5 {[%clk 0:01:14]}  Rxe5 {[%clk 0:01:10]} 23. Qxe5 {[%clk 0:01:15]}  Qxe5 {[%clk 0:01:06]} 24. Bxe5 {[%clk 0:01:16]}  c6 {[%clk 0:01:05]} 25. f4 {[%clk 0:01:08]}  Rd7 {[%clk 0:01:00]} 26. Kf3 {[%clk 0:01:04]}  g6 {[%clk 0:01:00]} 27. h3 {[%clk 0:01:01]}  Kf7 {[%clk 0:01:00]} 28. g4 {[%clk 0:01:01]}  Ke6 {[%clk 0:01:00]} 29. gxf5+ {[%clk 0:01:00]}  gxf5 {[%clk 0:00:55]} 30. Rg1 {[%clk 0:01:00]}  Nc8 {[%clk 0:00:45]} 31. Rg8 {[%clk 0:00:56]}  Ne7 {[%clk 0:00:46]} 32. Rf8 {[%clk 0:00:51]}  Ng6 {[%clk 0:00:23]} 33. Rf6+ {[%clk 0:00:50]}  Ke7 {[%clk 0:00:24]} 34. Rxf5 {[%clk 0:00:50]}  Nh4+ {[%clk 0:00:24]} 35. Kg4 {[%clk 0:00:51]}  Nxf5 {[%clk 0:00:24]} 36. Kxf5 {[%clk 0:00:52]}  Kf7 {[%clk 0:00:25]} 37. d4 {[%clk 0:00:28]}  Rd8 {[%clk 0:00:24]} 38. e4 {[%clk 0:00:25]}  Rg8 {[%clk 0:00:25]} 39. d5 {[%clk 0:00:13]}  cxd5 {[%clk 0:00:23]} 40. exd5 {[%clk 0:00:14]}  Rg3 {[%clk 0:00:21]} 41. d6 {[%clk 0:00:15]}  Rxa3 {[%clk 0:00:19]} 42. Ke4 {[%clk 0:00:14]}  Ra2 {[%clk 0:00:16]} 43. f5 {[%clk 0:00:12]}  Re2+ {[%clk 0:00:15]} 44. Kd5 {[%clk 0:00:12]}  Rd2+ {[%clk 0:00:15]} 45. Bd4 {[%clk 0:00:08]}  Ke8 {[%clk 0:00:14]} 46. f6 {[%clk 0:00:07]}  Kd7 {[%clk 0:00:14]} 47. f7 {[%clk 0:00:06]}  Rd1 {[%clk 0:00:03]} 48. f8=Q {[%clk 0:00:06]} 1-0


[Site "https://www.chess.com"]

[Event "Titled Tuesday Blitz March 07 Early 2023"]
[White "Garrido, Denis"]
[Black "Malyi, Viacheslav"]
[WhiteFideId "601217"]
[BlackFideId "14123983"]
[WhiteElo "2213"]
[BlackElo "2291"]
[Result "1/2-1/2"]
[Round "01"]
[TimeControl "180+2"]
[Date "2023.03.07"]
[WhiteClock "0:01:01"]
[BlackClock "0:01:30"]

1. e4 {[%clk 0:03:00]}  e5 {[%clk 0:02:59]} 2. Nf3 {[%clk 0:02:59]}  Nc6 {[%clk 0:03:00]} 3. Bb5 {[%clk 0:02:58]}  a6 {[%clk 0:03:00]} 4. Ba4 {[%clk 0:02:58]}  Nf6 {[%clk 0:03:00]} 5. Nc3 {[%clk 0:02:58]}  b5 {[%clk 0:03:00]} 6. Bb3 {[%clk 0:02:58]}  Bc5 {[%clk 0:03:01]} 7. d3 {[%clk 0:02:58]}  d6 {[%clk 0:03:00]} 8. Nd5 {[%clk 0:02:58]}  Nxd5 {[%clk 0:02:57]} 9. Bxd5 {[%clk 0:02:58]}  Bb7 {[%clk 0:02:53]} 10. c3 {[%clk 0:02:57]}  Bb6 {[%clk 0:02:52]} 11. O-O {[%clk 0:02:56]}  Rb8 {[%clk 0:02:50]} 12. d4 {[%clk 0:02:53]}  O-O {[%clk 0:02:48]} 13. Bg5 {[%clk 0:02:48]}  Qe8 {[%clk 0:02:47]} 14. Re1 {[%clk 0:02:46]}  h6 {[%clk 0:02:44]} 15. Bh4 {[%clk 0:02:44]}  Kh8 {[%clk 0:02:23]} 16. a4 {[%clk 0:02:37]}  f5 {[%clk 0:02:23]} 17. exf5 {[%clk 0:02:36]}  Rxf5 {[%clk 0:02:23]} 18. dxe5 {[%clk 0:02:26]}  Nxe5 {[%clk 0:02:16]} 19. Bxb7 {[%clk 0:02:25]}  Rxb7 {[%clk 0:02:17]} 20. Nxe5 {[%clk 0:02:24]}  Rxe5 {[%clk 0:02:18]} 21. axb5 {[%clk 0:02:22]}  axb5 {[%clk 0:02:08]} 22. Rxe5 {[%clk 0:02:16]}  dxe5 {[%clk 0:02:08]} 23. Qd5 {[%clk 0:01:45]}  Ra7 {[%clk 0:02:05]} 24. Rxa7 {[%clk 0:01:34]}  Bxa7 {[%clk 0:02:05]} 25. Bg3 {[%clk 0:01:32]}  e4 {[%clk 0:02:04]} 26. h3 {[%clk 0:01:26]}  Bb6 {[%clk 0:02:00]} 27. Bf4 {[%clk 0:01:20]}  e3 {[%clk 0:01:59]} 28. fxe3 {[%clk 0:01:18]}  Bxe3+ {[%clk 0:02:00]} 29. Bxe3 {[%clk 0:01:18]}  Qxe3+ {[%clk 0:02:01]} 30. Kh2 {[%clk 0:01:19]}  Qf4+ {[%clk 0:02:00]} 31. Kg1 {[%clk 0:01:08]}  Qc1+ {[%clk 0:01:59]} 32. Kh2 {[%clk 0:01:08]}  Qf4+ {[%clk 0:01:53]} 33. Kg1 {[%clk 0:01:08]}  Qc1+ {[%clk 0:01:52]} 34. Kh2 {[%clk 0:01:08]}  Qxb2 {[%clk 0:01:53]} 35. Qd8+ {[%clk 0:01:08]}  Kh7 {[%clk 0:01:52]} 36. Qd3+ {[%clk 0:01:08]}  Kg8 {[%clk 0:01:51]} 37. Qd5+ {[%clk 0:01:04]}  Kh7 {[%clk 0:01:38]} 38. Qd3+ {[%clk 0:01:03]}  Kg8 {[%clk 0:01:38]} 39. Qd5+ {[%clk 0:01:03]}  Kf8 {[%clk 0:01:37]} 40. Qd8+ {[%clk 0:01:03]}  Kf7 {[%clk 0:01:35]} 41. Qxc7+ {[%clk 0:01:04]}  Kg8 {[%clk 0:01:35]} 42. Qc8+ {[%clk 0:01:02]}  Kh7 {[%clk 0:01:33]} 43. Qf5+ {[%clk 0:01:02]}  Kg8 {[%clk 0:01:33]} 44. Qc8+ {[%clk 0:01:00]}  Kh7 {[%clk 0:01:33]} 45. Qf5+ {[%clk 0:01:01]}  Kh8 {[%clk 0:01:29]} 46. Qc8+ {[%clk 0:01:01]}  Kh7 {[%clk 0:01:30]} 1/2-1/2


[Site "https://www.chess.com"]